[Event "94th Tradewise Hastings Congress"]
[Site "Hastings"]
[Date "2019.01.03"]
[Round "7"]
[White "Graham, David B"]
[Black "Boswell, Jacob Connor"]
[Result "1-0"]
[ECO "C54"]
[WhiteElo "2208"]
[BlackElo "1858"]
[Annotator "NA"]
[PlyCount "53"]
[EventDate "2018.12.28"]
[EventType "swiss"]
[EventCountry "ENG"]
[SourceTitle "playchess.com"]
[Source "ChessBase"]
[SourceQuality "1"]
[TimeControl "40/6000+30:3000+30"]

1. e4 {[%emt 0:00:00]} e5 {[%emt 0:00:00]} 2. Nf3 {[%emt 0:00:00]} Nc6 {[%emt 0:00:00]} 3. Bc4 {[%emt 0:00:00]} Bc5 {[%emt 0:00:00]} 4. c3 {[%emt 0:00:00]} Nf6 {[%emt 0:00:00]} 5. d3 {[%emt 0:00:00]} d6 $11 {[%emt 0:00:32] LiveBook: 2716 Games} 6. Nbd2 {[%emt 0:00:07]} a6 {[%emt 0:04:01]} 7. Bb3 {[%emt 0:00:23]} Ba7 {[%emt 0:03:05]} 8. h3 {[%emt 0:00:51]} O-O {[%emt 0:02:47]} 9. Nf1 {[%emt 0:00:55]} h6 {[%emt 0:00:37]} 10. g4 {[%emt 0:01:26]} d5 {[%emt 0:04:29]} 11. Qe2 {[%emt 0:00:09]} Qd6 {[%emt 0:10:14]} 12. Ng3 {[%emt 0:03:40]} Na5 {[%emt 0:07:59]} 13. Bc2 {[%emt 0:16:30]} c5 {[%emt 0:05:56]} 14. O-O {[%emt 0:11:14]} Re8 {[%emt 0:07:30]} 15. Nh4 {[%emt 0:04:34]} c4 {[%emt 0:03:13]} 16. Nhf5 {[%emt 0:06:27]} Bxf5 {[%emt 0:03:47]} 17. Nxf5 {[%emt 0:00:05]} Qe6 {[%emt 0:06:33]} 18. exd5 {[%emt 0:08:03]} Qxd5 {[%emt 0:06:23]} 19. Bxh6 {[%emt 0:09:33]} cxd3 {[%emt 0:03:05]} 20. Bxd3 {[%emt 0:08:17]} e4 {[%emt 0:01:11]} 21. Bxg7 {[%emt 0:09:05]} Nh5 {[%emt 0:08:14]} 22. Qd2 {[%emt 0:05:54]} Nxg7 {[%emt 0:14:07]} 23. Qg5 {[%emt 0:00:10]} Qe5 {[%emt 0:00:10]} 24. Rae1 {[%emt 0:06:31]} e3 {[%emt 0:06:23]} 25. fxe3 {[%emt 0:09:32]} Kf8 {[%emt 0:01:01]} 26. Qh6 {[%emt 0:00:36]} Kg8 {[%emt 0:00:06]} 27. Ne7+ {[%emt 0:01:03]} 1-0

[Event "94th Tradewise Hastings Congress"]
[Site "Hastings"]
[Date "2019.01.03"]
[Round "7"]
[White "Stoyanov, Viktor"]
[Black "Ratnesan, Ranesh"]
[Result "1/2-1/2"]
[ECO "B53"]
[WhiteElo "2205"]
[BlackElo "2055"]
[Annotator "NA"]
[PlyCount "96"]
[EventDate "2018.12.28"]
[EventType "swiss"]
[EventCountry "ENG"]
[SourceTitle "playchess.com"]
[Source "ChessBase"]
[SourceQuality "1"]
[TimeControl "40/6000+30:3000+30"]

1. e4 {[%emt 0:00:21]} c5 {[%emt 0:00:00]} 2. Nf3 {[%emt 0:00:09]} d6 {[%emt 0:00:06]} 3. d4 {[%emt 0:00:09]} cxd4 {[%emt 0:00:06]} 4. Qxd4 {[%emt 0:00:05]} Nc6 {[%emt 0:01:40]} 5. Bb5 {[%emt 0:00:48]} Bd7 {[%emt 0:06:19]} 6. Qd3 {[%emt 0:00:00]} g6 {[%emt 0:02:33]} 7. c4 {[%emt 0:00:00]} Bg7 {[%emt 0:00:32]} 8. Nc3 {[%emt 0:00:00]} Nf6 {[%emt 0:01:01]} 9. O-O {[%emt 0:00:00]} O-O {[%emt 0:00:44]} 10. h3 {[%emt 0:00:00]} Rc8 {[%emt 0:05:18]} 11. Be3 {[%emt 0:00:43]} Nb4 {[%emt 0:13:01]} 12. Qe2 {[%emt 0:01:21]} a6 {[%emt 0:01:25]} 13. Bxd7 {[%emt 0:00:36]} Nxd7 {[%emt 0:04:08]} 14. Rac1 {[%emt 0:00:07]} Qa5 {[%emt 0:06:09]} 15. a3 {[%emt 0:04:29]} Nc6 {[%emt 0:02:31]} 16. Rfd1 {[%emt 0:01:05]} Qh5 {[%emt 0:13:05]} 17. Qf1 {[%emt 0:18:12]} Nde5 {[%emt 0:10:14]} 18. Nd2 {[%emt 0:06:01]} g5 {[%emt 0:04:36]} 19. Ne2 {[%emt 0:01:28]} Qg6 {[%emt 0:02:54]} 20. Ng3 {[%emt 0:01:39]} e6 {[%emt 0:01:24]} 21. Nb3 {[%emt 0:11:27]} Rfd8 {[%emt 0:03:32]} 22. Qe2 {[%emt 0:04:17]} h6 {[%emt 0:06:10]} 23. Rd2 {[%emt 0:02:13]} Bf8 {[%emt 0:03:47]} 24. Rcd1 {[%emt 0:14:55]} Be7 {[%emt 0:04:53]} 25. Bb6 {[%emt 0:04:49]} Re8 {[%emt 0:00:54]} 26. Nf1 {[%emt 0:03:08]} Nd7 {[%emt 0:00:50]} 27. c5 {[%emt 0:06:45]} Nxb6 {[%emt 0:05:02]} 28. cxd6 {[%emt 0:00:41]} Nd7 {[%emt 0:01:50]} 29. dxe7 {[%emt 0:00:11]} Nde5 {[%emt 0:00:09]} 30. Nd4 {[%emt 0:09:35]} Nxe7 {[%emt 0:01:07]} 31. Nf3 {[%emt 0:00:34]} N7c6 {[%emt 0:01:21]} 32. N1h2 {[%emt 0:02:36]} Qf6 {[%emt 0:01:59]} 33. Nxe5 {[%emt 0:01:03]} Nxe5 {[%emt 0:00:13]} 34. Ng4 {[%emt 0:00:12]} Nxg4 {[%emt 0:02:00]} 35. Qxg4 {[%emt 0:00:03]} Rc7 {[%emt 0:02:34]} 36. h4 {[%emt 0:02:41]} Kg7 {[%emt 0:00:43]} 37. g3 {[%emt 0:01:05]} Rec8 {[%emt 0:00:15]} 38. f4 {[%emt 0:06:15]} Rc2 {[%emt 0:01:10]} 39. hxg5 {[%emt 0:03:47]} hxg5 {[%emt 0:00:27]} 40. fxg5 {[%emt 0:05:45]} Qxb2 {[%emt 0:01:32]} 41. Qf4 {[%emt 0:50:26]} Rxd2 {[%emt 0:51:23]} 42. Rxd2 {[%emt 0:00:09]} Qa1+ {[%emt 0:00:00]} 43. Kg2 {[%emt 0:00:00]} Rh8 {[%emt 0:00:00]} 44. Kf3 {[%emt 0:00:00]} Qh1+ {[%emt 0:00:00]} 45. Ke3 {[%emt 0:00:00]} Qe1+ {[%emt 0:00:00]} 46. Kf3 {[%emt 0:00:00]} Qh1+ {[%emt 0:00:00]} 47. Ke3 {[%emt 0:00:00]} Qe1+ {[%emt 0:00:00]} 48. Kf3 {[%emt 0:00:00]} Qh1+ {[%emt 0:00:00]} 1/2-1/2

[Event "94th Tradewise Hastings Congress"]
[Site "Hastings"]
[Date "2019.01.03"]
[Round "7"]
[White "Royset, Pal"]
[Black "Trevelyan, John"]
[Result "1-0"]
[ECO "C41"]
[WhiteElo "2182"]
[BlackElo "1996"]
[Annotator "NA"]
[PlyCount "109"]
[EventDate "2018.12.28"]
[EventType "swiss"]
[EventCountry "ENG"]
[SourceTitle "playchess.com"]
[Source "ChessBase"]
[SourceQuality "1"]
[TimeControl "40/6000+30:3000+30"]

1. e4 {[%emt 0:00:00]} d6 {[%emt 0:00:00]} 2. d4 {[%emt 0:00:00]} Nf6 {[%emt 0:00:00]} 3. Nc3 {[%emt 0:00:03]} e5 {[%emt 0:00:00]} 4. Bg5 {[%emt 0:02:43]} Be7 {[%emt 0:01:12]} 5. Nf3 {[%emt 0:01:02]} Nbd7 {[%emt 0:00:36]} 6. h3 {[%emt 0:05:22]} O-O {[%emt 0:02:51]} 7. Qd2 {[%emt 0:01:12]} c6 {[%emt 0:03:56]} 8. Bd3 {[%emt 0:14:38]} exd4 {[%emt 0:09:50]} 9. Nxd4 {[%emt 0:02:10]} Nc5 {[%emt 0:01:28]} 10. Nf3 {[%emt 0:04:40]} Nxd3+ {[%emt 0:11:18]} 11. cxd3 {[%emt 0:02:20]} d5 {[%emt 0:05:54]} 12. O-O-O {[%emt 0:06:19]} h6 {[%emt 0:05:53]} 13. Be3 {[%emt 0:02:38]} dxe4 {[%emt 0:07:39]} 14. dxe4 {[%emt 0:02:03]} Qa5 {[%emt 0:00:35]} 15. Qc2 {[%emt 0:03:34]} Bb4 {[%emt 0:08:30]} 16. Bd4 {[%emt 0:02:44]} Be7 {[%emt 0:03:27]} 17. Nd2 {[%emt 0:04:12]} Be6 {[%emt 0:00:53]} 18. Nb3 {[%emt 0:01:32]} Qb4 {[%emt 0:01:55]} 19. Be3 {[%emt 0:06:08]} Rfd8 {[%emt 0:05:17]} 20. Nd4 {[%emt 0:04:39]} Bc4 {[%emt 0:04:14]} 21. Kb1 {[%emt 0:03:51]} Qa5 {[%emt 0:01:38]} 22. b3 {[%emt 0:02:28]} Ba6 {[%emt 0:03:11]} 23. f3 {[%emt 0:03:32]} Bb4 {[%emt 0:00:59]} 24. Nde2 {[%emt 0:04:20]} Bc5 {[%emt 0:02:32]} 25. Bc1 {[%emt 0:03:25]} Rxd1 {[%emt 0:00:57]} 26. Rxd1 {[%emt 0:00:52]} Rd8 {[%emt 0:00:50]} 27. Bb2 {[%emt 0:01:16]} Qc7 {[%emt 0:01:42]} 28. Na4 {[%emt 0:04:20]} Be7 {[%emt 0:00:28]} 29. Kc1 {[%emt 0:07:09]} Nd7 {[%emt 0:03:18]} 30. Nd4 {[%emt 0:00:50]} Bf6 {[%emt 0:01:03]} 31. Nf5 {[%emt 0:00:29]} Ne5 {[%emt 0:02:07]} 32. Nc5 {[%emt 0:00:55]} Rxd1+ {[%emt 0:01:56]} 33. Qxd1 {[%emt 0:02:05]} Qa5 {[%emt 0:00:47]} 34. Nxa6 {[%emt 0:00:35]} Qxa6 {[%emt 0:00:07]} 35. Kb1 {[%emt 0:01:00]} Qb5 {[%emt 0:03:02]} 36. Nd6 {[%emt 0:02:02]} Qb6 {[%emt 0:04:39]} 37. f4 {[%emt 0:02:24]} Nd7 {[%emt 0:03:14]} 38. e5 {[%emt 0:00:56]} Be7 {[%emt 0:00:17]} 39. Nf5 {[%emt 0:00:29]} Qd8 {[%emt 0:00:39]} 40. Qg4 {[%emt 0:00:39]} g6 {[%emt 0:02:08]} 41. Nxh6+ {[%emt 0:52:29]} Kf8 {[%emt 0:50:16]} 42. Qd1 {[%emt 0:00:00]} Nc5 {[%emt 0:00:00]} 43. Qxd8+ {[%emt 0:00:00]} Bxd8 {[%emt 0:00:00]} 44. Ba3 {[%emt 0:00:00]} Be7 {[%emt 0:00:00]} 45. Bxc5 {[%emt 0:00:00]} Bxc5 {[%emt 0:00:00]} 46. Ng4 {[%emt 0:00:00]} Ke7 {[%emt 0:00:00]} 47. Kc2 {[%emt 0:00:00]} Ke6 {[%emt 0:00:00]} 48. Kd3 {[%emt 0:00:00]} Kf5 {[%emt 0:00:00]} 49. g3 {[%emt 0:00:00]} Bg1 {[%emt 0:00:00]} 50. Nh6+ {[%emt 0:00:00]} Ke6 {[%emt 0:00:00]} 51. Ke4 {[%emt 0:00:00]} f5+ {[%emt 0:00:00]} 52. exf6 {[%emt 0:00:00]} Kxf6 {[%emt 0:00:00]} 53. Ng4+ {[%emt 0:00:00]} Ke6 {[%emt 0:00:00]} 54. Ne5 {[%emt 0:00:00]} Kf6 {[%emt 0:00:00]} 55. g4 {[%emt 0:00:00]} 1-0

[Event "94th Tradewise Hastings Congress"]
[Site "Hastings"]
[Date "2019.01.03"]
[Round "7"]
[White "Sumit, Kumar"]
[Black "Gu, In Jung"]
[Result "0-1"]
[ECO "B06"]
[WhiteElo "2179"]
[BlackElo "1794"]
[Annotator "NA"]
[PlyCount "58"]
[EventDate "2018.12.28"]
[EventType "swiss"]
[EventCountry "ENG"]
[SourceTitle "playchess.com"]
[Source "ChessBase"]
[SourceQuality "1"]
[TimeControl "40/6000+30:3000+30"]

1. e4 {[%emt 0:00:00]} g6 {[%emt 0:00:06]} 2. d4 {[%emt 0:00:00]} Bg7 {[%emt 0:00:11]} 3. f4 {[%emt 0:01:45]} d6 {[%emt 0:00:19]} 4. Nf3 {[%emt 0:00:59]} a6 {[%emt 0:00:34]} 5. Bd3 {[%emt 0:01:22]} c5 {[%emt 0:02:19]} 6. c3 {[%emt 0:05:56]} cxd4 {[%emt 0:06:00]} 7. cxd4 {[%emt 0:01:45]} Bg4 {[%emt 0:02:50]} 8. Qb3 {[%emt 0:27:43]} Bxf3 {[%emt 0:08:14]} 9. gxf3 {[%emt 0:00:31]} Bxd4 {[%emt 0:01:54]} 10. Qxb7 {[%emt 0:01:45]} Ra7 {[%emt 0:06:24]} 11. Qb3 {[%emt 0:00:59]} e5 {[%emt 0:01:12]} 12. h4 {[%emt 0:03:46]} Nd7 {[%emt 0:05:09]} 13. Nc3 {[%emt 0:08:42]} Nc5 {[%emt 0:08:03]} 14. Qc2 {[%emt 0:00:42]} Ne7 {[%emt 0:03:50]} 15. Bc4 {[%emt 0:04:38]} Rc7 {[%emt 0:23:12]} 16. Bd2 {[%emt 0:09:50]} Qc8 {[%emt 0:05:30]} 17. Bf1 {[%emt 0:04:24]} h5 {[%emt 0:07:51]} 18. Rc1 {[%emt 0:02:14]} O-O {[%emt 0:05:16]} 19. f5 {[%emt 0:01:04]} Nd7 {[%emt 0:06:01]} 20. Bh3 {[%emt 0:08:09]} Qb7 {[%emt 0:00:36]} 21. Bg5 {[%emt 0:00:31]} f6 {[%emt 0:01:17]} 22. Bh6 {[%emt 0:04:14]} Rfc8 {[%emt 0:00:15]} 23. Bd2 {[%emt 0:05:26]} gxf5 {[%emt 0:00:49]} 24. Bh6 {[%emt 0:02:53]} Kh8 {[%emt 0:01:55]} 25. Qd2 {[%emt 0:01:00]} f4 {[%emt 0:03:43]} 26. Bxf4 {[%emt 0:03:12]} exf4 {[%emt 0:01:36]} 27. Qxf4 {[%emt 0:00:58]} Ng8 {[%emt 0:00:53]} 28. Qf5 {[%emt 0:01:12]} Qxb2 {[%emt 0:01:11]} 29. Qxh5+ {[%emt 0:00:53]} Kg7 {[%emt 0:00:04]} 0-1

[Event "94th Tradewise Hastings Congress"]
[Site "Hastings"]
[Date "2019.01.03"]
[Round "7"]
[White "Eames, Robert S"]
[Black "Fryer, David W"]
[Result "1/2-1/2"]
[ECO "D37"]
[WhiteElo "2167"]
[BlackElo "1932"]
[Annotator "NA"]
[PlyCount "57"]
[EventDate "2018.12.28"]
[EventType "swiss"]
[EventCountry "ENG"]
[SourceTitle "playchess.com"]
[Source "ChessBase"]
[SourceQuality "1"]
[TimeControl "40/6000+30:3000+30"]

1. d4 {[%emt 0:00:48]} d5 {[%emt 0:00:00]} 2. c4 {[%emt 0:00:33]} e6 {[%emt 0:00:00]} 3. Nc3 {[%emt 0:00:06]} Nf6 {[%emt 0:00:13]} 4. Nf3 {[%emt 0:00:24]} Be7 {[%emt 0:00:24]} 5. g4 {[%emt 0:01:02]} Nxg4 {[%emt 0:04:20]} 6. Rg1 {[%emt 0:01:06]} h5 {[%emt 0:03:15]} 7. h3 {[%emt 0:01:19]} Nh6 {[%emt 0:05:36]} 8. Bxh6 {[%emt 0:02:15]} gxh6 {[%emt 0:01:28]} 9. e3 {[%emt 0:00:25]} Bb4 {[%emt 0:04:59]} 10. Ne5 {[%emt 0:03:46]} Bxc3+ {[%emt 0:04:24]} 11. bxc3 {[%emt 0:00:08]} Nd7 {[%emt 0:10:28]} 12. Qxh5 {[%emt 0:00:13]} Nxe5 {[%emt 0:00:19]} 13. Qxe5 {[%emt 0:00:07]} Rf8 {[%emt 0:00:48]} 14. Rg7 {[%emt 0:03:07]} c6 {[%emt 0:00:27]} 15. Kd2 {[%emt 0:04:18]} Qh4 {[%emt 0:09:57]} 16. f4 {[%emt 0:02:56]} Bd7 {[%emt 0:04:26]} 17. Qc7 {[%emt 0:02:37]} dxc4 {[%emt 0:08:44]} 18. Bxc4 {[%emt 0:05:25]} Qf2+ {[%emt 0:02:16]} 19. Be2 {[%emt 0:00:28]} Rc8 {[%emt 0:03:54]} 20. Qxb7 {[%emt 0:03:35]} Ke7 {[%emt 0:01:19]} 21. Qxa7 {[%emt 0:11:29]} c5 {[%emt 0:06:38]} 22. Rf1 {[%emt 0:01:59]} Qh2 {[%emt 0:00:30]} 23. h4 {[%emt 0:17:01]} Rfd8 {[%emt 0:10:18]} 24. f5 {[%emt 0:02:38]} Kf6 {[%emt 0:02:29]} 25. fxe6+ {[%emt 0:05:50]} Kxg7 {[%emt 0:01:07]} 26. Rxf7+ {[%emt 0:00:07]} Kg8 {[%emt 0:01:34]} 27. Rxd7 {[%emt 0:00:24]} Rxd7 {[%emt 0:02:00]} 28. exd7 {[%emt 0:04:52]} Rb8 {[%emt 0:00:35]} 29. Qb6 {[%emt 0:00:52]} 1/2-1/2

[Event "94th Tradewise Hastings Congress"]
[Site "Hastings"]
[Date "2019.01.03"]
[Round "7"]
[White "Anderson, John"]
[Black "Villiers, Thomas"]
[Result "1/2-1/2"]
[ECO "A35"]
[WhiteElo "2163"]
[BlackElo "2205"]
[Annotator "NA"]
[PlyCount "164"]
[EventDate "2018.12.28"]
[EventType "swiss"]
[EventCountry "ENG"]
[SourceTitle "playchess.com"]
[Source "ChessBase"]
[SourceQuality "1"]
[TimeControl "40/6000+30:3000+30"]

1. Nf3 {[%emt 0:00:00]} Nf6 {[%emt 0:02:08]} 2. c4 {[%emt 0:00:13]} c5 {[%emt 0:01:29]} 3. Nc3 {[%emt 0:00:12]} Nc6 {[%emt 0:00:16]} 4. e3 {[%emt 0:01:07]} e6 {[%emt 0:03:38]} 5. d4 {[%emt 0:01:18]} d5 {[%emt 0:00:35]} 6. cxd5 {[%emt 0:00:11]} exd5 {[%emt 0:02:45]} 7. Bb5 {[%emt 0:00:11]} a6 {[%emt 0:00:20]} 8. Bxc6+ {[%emt 0:02:17]} bxc6 {[%emt 0:00:04]} 9. O-O {[%emt 0:02:40]} Bd6 {[%emt 0:03:57]} 10. dxc5 {[%emt 0:03:39]} Bxc5 {[%emt 0:00:55]} 11. Qa4 {[%emt 0:00:37]} Qc7 {[%emt 0:01:02]} 12. b3 {[%emt 0:02:31]} Nd7 {[%emt 0:03:51]} 13. Bb2 {[%emt 0:01:56]} O-O {[%emt 0:00:28]} 14. Rac1 {[%emt 0:00:21]} Qd6 {[%emt 0:06:13]} 15. Rfd1 {[%emt 0:01:27]} Nf6 {[%emt 0:07:59]} 16. Qh4 {[%emt 0:02:38]} Bf5 {[%emt 0:02:20]} 17. Na4 {[%emt 0:02:35]} Ba7 {[%emt 0:01:19]} 18. Be5 {[%emt 0:11:17]} Qe6 {[%emt 0:00:11]} 19. Bxf6 {[%emt 0:00:17]} gxf6 {[%emt 0:01:22]} 20. Nd4 {[%emt 0:00:18]} Bxd4 {[%emt 0:00:51]} 21. Rxd4 {[%emt 0:14:30]} Kh8 {[%emt 0:01:13]} 22. Nc5 {[%emt 0:15:18]} Qe5 {[%emt 0:00:11]} 23. Nd3 {[%emt 0:03:12]} Bxd3 {[%emt 0:09:48]} 24. Rxd3 {[%emt 0:00:02]} Rac8 {[%emt 0:00:29]} 25. Qd4 {[%emt 0:01:52]} Rfd8 {[%emt 0:00:25]} 26. Rc5 {[%emt 0:02:09]} Rg8 {[%emt 0:00:54]} 27. g3 {[%emt 0:00:42]} Rgd8 {[%emt 0:01:14]} 28. Qc3 {[%emt 0:01:34]} Kg7 {[%emt 0:10:54]} 29. Rd4 {[%emt 0:00:46]} Qe6 {[%emt 0:02:31]} 30. Kg2 {[%emt 0:06:30]} Qd6 {[%emt 0:01:45]} 31. b4 {[%emt 0:00:33]} Rd7 {[%emt 0:06:32]} 32. Qd3 {[%emt 0:12:13]} Ra7 {[%emt 0:02:39]} 33. Rg4+ {[%emt 0:08:44]} Kf8 {[%emt 0:00:06]} 34. Qxh7 {[%emt 0:00:24]} Ke7 {[%emt 0:00:07]} 35. Qf5 {[%emt 0:00:58]} Rb8 {[%emt 0:00:51]} 36. Qc2 {[%emt 0:00:44]} Qe6 {[%emt 0:01:31]} 37. Rd4 {[%emt 0:00:36]} Rb6 {[%emt 0:01:44]} 38. a4 {[%emt 0:03:06]} a5 {[%emt 0:05:31]} 39. Rxa5 {[%emt 0:00:30]} Rxa5 {[%emt 0:00:15]} 40. bxa5 {[%emt 0:00:07]} Ra6 {[%emt 0:00:14]} 41. Qd2 {[%emt 0:10:19]} c5 {[%emt 0:05:18]} 42. Rh4 {[%emt 0:02:47]} Qc6 {[%emt 0:02:41]} 43. f3 {[%emt 0:01:10]} c4 {[%emt 0:01:56]} 44. Qb4+ {[%emt 0:04:15]} Ke6 {[%emt 0:00:39]} 45. e4 {[%emt 0:07:48]} d4 {[%emt 0:02:11]} 46. Rh5 {[%emt 0:02:40]} c3 {[%emt 0:02:36]} 47. Rc5 {[%emt 0:00:06]} c2 {[%emt 0:05:27]} 48. Qb3+ {[%emt 0:00:42]} Ke7 {[%emt 0:02:37]} 49. Rxc2 {[%emt 0:01:55]} Qd6 {[%emt 0:00:19]} 50. Qb7+ {[%emt 0:01:12]} Kf8 {[%emt 0:00:32]} 51. Rc7 {[%emt 0:12:26]} Qe6 {[%emt 0:00:28]} 52. Rc8+ {[%emt 0:00:40]} Kg7 {[%emt 0:00:08]} 53. Qb8 {[%emt 0:00:31]} f5 {[%emt 0:02:46]} 54. e5 {[%emt 0:02:09]} Qa2+ {[%emt 0:00:06]} 55. Kf1 {[%emt 0:02:36]} Qa1+ {[%emt 0:01:24]} 56. Ke2 {[%emt 0:02:50]} Qa2+ {[%emt 0:01:47]} 57. Kd3 {[%emt 0:00:40]} Qa3+ {[%emt 0:00:19]} 58. Kxd4 {[%emt 0:00:16]} Qxa4+ {[%emt 0:00:18]} 59. Ke3 {[%emt 0:00:08]} f4+ {[%emt 0:03:45]} 60. gxf4 {[%emt 0:00:44]} Qa3+ {[%emt 0:00:09]} 61. Ke4 {[%emt 0:00:12]} Qa4+ {[%emt 0:00:12]} 62. Kf5 {[%emt 0:00:17]} Qd7+ {[%emt 0:00:12]} 63. Ke4 {[%emt 0:00:44]} Qa4+ {[%emt 0:00:07]} 64. Ke3 {[%emt 0:01:39]} Qa3+ {[%emt 0:00:14]} 65. Ke2 {[%emt 0:01:39]} Qa2+ {[%emt 0:00:07]} 66. Kd1 {[%emt 0:01:12]} Qa4+ {[%emt 0:05:43]} 67. Kc1 {[%emt 0:00:39]} Qa1+ {[%emt 0:04:32]} 68. Kc2 {[%emt 0:01:06]} Qa4+ {[%emt 0:00:37]} 69. Qb3 {[%emt 0:03:25]} Qxa5 {[%emt 0:00:23]} 70. Qc3 {[%emt 0:01:20]} Qa4+ {[%emt 0:02:36]} 71. Kd2 {[%emt 0:00:28]} Qxf4+ {[%emt 0:05:43]} 72. Ke1 {[%emt 0:00:39]} Ra1+ {[%emt 0:00:59]} 73. Qxa1 {[%emt 0:00:58]} Qe3+ {[%emt 0:00:04]} 74. Kf1 {[%emt 0:00:07]} Qxf3+ {[%emt 0:00:03]} 75. Kg1 {[%emt 0:00:11]} Qg4+ {[%emt 0:00:11]} 76. Kf2 {[%emt 0:00:35]} Qxc8 {[%emt 0:00:08]} 77. Qd4 {[%emt 0:00:43]} Qf5+ {[%emt 0:01:19]} 78. Kg3 {[%emt 0:00:05]} f6 {[%emt 0:00:28]} 79. exf6+ {[%emt 0:01:33]} Qxf6 {[%emt 0:00:04]} 80. Qg4+ {[%emt 0:00:05]} Qg6 {[%emt 0:00:13]} 81. h3 {[%emt 0:00:02]} Qxg4+ {[%emt 0:00:12]} 82. hxg4 {[%emt 0:00:03]} Kg6 {[%emt 0:00:07]} 1/2-1/2

[Event "94th Tradewise Hastings Congress"]
[Site "Hastings"]
[Date "2019.01.03"]
[Round "7"]
[White "Groffen, Hans"]
[Black "Rice, Chris B"]
[Result "0-1"]
[ECO "E92"]
[WhiteElo "2120"]
[BlackElo "1963"]
[Annotator "NA"]
[PlyCount "76"]
[EventDate "2018.12.28"]
[EventType "swiss"]
[EventCountry "ENG"]
[SourceTitle "playchess.com"]
[Source "ChessBase"]
[SourceQuality "1"]
[TimeControl "40/6000+30:3000+30"]

1. d4 {[%emt 0:00:00]} Nf6 {[%emt 0:03:30]} 2. c4 {[%emt 0:00:00]} g6 {[%emt 0:00:29]} 3. Nc3 {[%emt 0:00:00]} Bg7 {[%emt 0:00:11]} 4. e4 {[%emt 0:00:00]} d6 {[%emt 0:00:08]} 5. Be2 {[%emt 0:00:09]} O-O {[%emt 0:00:26]} 6. Be3 {[%emt 0:00:06]} Nc6 {[%emt 0:07:11]} 7. Nf3 {[%emt 0:02:33]} e5 {[%emt 0:02:59]} 8. d5 {[%emt 0:00:40]} Ne7 {[%emt 0:00:05]} 9. Nd2 {[%emt 0:00:20]} Ne8 {[%emt 0:03:05]} 10. Qc2 {[%emt 0:06:48]} f5 {[%emt 0:02:43]} 11. f3 {[%emt 0:00:18]} Nf6 {[%emt 0:01:20]} 12. O-O-O {[%emt 0:01:47]} c5 {[%emt 0:05:50]} 13. dxc6 {[%emt 0:01:02]} bxc6 {[%emt 0:00:26]} 14. Nb3 {[%emt 0:01:06]} Qc7 {[%emt 0:10:05]} 15. Kb1 {[%emt 0:07:17]} a5 {[%emt 0:04:00]} 16. Na4 {[%emt 0:10:35]} Rb8 {[%emt 0:08:54]} 17. Bd2 {[%emt 0:01:56]} fxe4 {[%emt 0:01:43]} 18. Bxa5 {[%emt 0:04:10]} Qa7 {[%emt 0:00:51]} 19. Qd2 {[%emt 0:01:41]} Nf5 {[%emt 0:21:43]} 20. c5 {[%emt 0:02:16]} d5 {[%emt 0:02:49]} 21. Nb6 {[%emt 0:03:29]} Be6 {[%emt 0:01:03]} 22. Qc1 {[%emt 0:02:52]} Qf7 {[%emt 0:09:15]} 23. Bd2 {[%emt 0:00:40]} exf3 {[%emt 0:00:39]} 24. gxf3 {[%emt 0:00:19]} Nh5 {[%emt 0:02:06]} 25. Rhe1 {[%emt 0:01:15]} Nh4 {[%emt 0:03:17]} 26. Na5 {[%emt 0:01:59]} Ng2 {[%emt 0:05:06]} 27. Rg1 {[%emt 0:01:00]} Ngf4 {[%emt 0:00:00]} 28. Bf1 {[%emt 0:00:27]} Bf5+ {[%emt 0:01:37]} 29. Ka1 {[%emt 0:00:09]} Qe6 {[%emt 0:00:49]} 30. Bxf4 {[%emt 0:00:44]} Nxf4 {[%emt 0:00:31]} 31. Nac4 {[%emt 0:01:40]} Bh3 {[%emt 0:06:26]} 32. Ne3 {[%emt 0:01:09]} Bxf1 {[%emt 0:00:16]} 33. Rgxf1 {[%emt 0:00:15]} Rf7 {[%emt 0:00:52]} 34. Qc2 {[%emt 0:00:35]} Qe7 {[%emt 0:00:44]} 35. Rc1 {[%emt 0:01:37]} Ne6 {[%emt 0:00:31]} 36. Qa4 {[%emt 0:01:31]} Nd4 {[%emt 0:02:38]} 37. Ng4 {[%emt 0:01:30]} Qe6 {[%emt 0:01:15]} 38. Rc3 {[%emt 0:01:20]} Qxg4 {[%emt 0:00:37]} 0-1

[Event "94th Tradewise Hastings Congress"]
[Site "Hastings"]
[Date "2019.01.03"]
[Round "7"]
[White "Rolvag, Mikael"]
[Black "Graham, Cassie M"]
[Result "1/2-1/2"]
[ECO "D85"]
[WhiteElo "2107"]
[BlackElo "1889"]
[Annotator "NA"]
[PlyCount "46"]
[EventDate "2018.12.28"]
[EventType "swiss"]
[EventCountry "ENG"]
[SourceTitle "playchess.com"]
[Source "ChessBase"]
[SourceQuality "1"]
[TimeControl "40/6000+30:3000+30"]

1. c4 {[%emt 0:00:00]} Nf6 {[%emt 0:00:00]} 2. Nc3 {[%emt 0:00:12]} g6 {[%emt 0:00:00]} 3. d4 {[%emt 0:06:00]} d5 {[%emt 0:00:00]} 4. cxd5 {[%emt 0:04:47]} Nxd5 {[%emt 0:00:05]} 5. e4 {[%emt 0:00:05]} Nxc3 {[%emt 0:00:21]} 6. bxc3 {[%emt 0:00:01]} Bg7 {[%emt 0:00:19]} 7. Bg5 {[%emt 0:00:56]} O-O {[%emt 0:07:07]} 8. Rc1 {[%emt 0:06:24]} c5 {[%emt 0:09:58]} 9. d5 {[%emt 0:00:51]} Qd6 {[%emt 0:05:35]} 10. c4 {[%emt 0:30:47]} Re8 {[%emt 0:07:44]} 11. Bd3 {[%emt 0:04:53]} Na6 {[%emt 0:04:53]} 12. Ne2 {[%emt 0:01:45]} Nc7 {[%emt 0:07:28]} 13. O-O {[%emt 0:01:30]} b6 {[%emt 0:07:00]} 14. Bf4 {[%emt 0:01:24]} Qd7 {[%emt 0:00:44]} 15. e5 {[%emt 0:01:51]} Bb7 {[%emt 0:01:02]} 16. Nc3 {[%emt 0:04:55]} Rad8 {[%emt 0:06:50]} 17. Bc2 {[%emt 0:03:40]} Ba6 {[%emt 0:08:18]} 18. Ba4 {[%emt 0:03:48]} Qf5 {[%emt 0:00:51]} 19. Bxe8 {[%emt 0:03:21]} Qxf4 {[%emt 0:00:43]} 20. Bb5 {[%emt 0:02:55]} Bxb5 {[%emt 0:02:40]} 21. Nxb5 {[%emt 0:01:40]} Nxb5 {[%emt 0:00:17]} 22. cxb5 {[%emt 0:00:08]} Bxe5 {[%emt 0:00:55]} 23. g3 {[%emt 0:04:47]} Bd4 {[%emt 0:00:25]} 1/2-1/2